[Event "*** Titled Tuesday 3|2 Blitz"]
[Site "Chess.com"]
[Date "2015.12.01"]
[Round "1"]
[White "Kacparov"]
[Black "cheese111"]
[Result "1/2-1/2"]
[WhiteElo "2510"]
[BlackElo "2205"]
[TimeControl "180+2"]
[EndTime "17:07:48 PST"]
[Termination "Game drawn by agreement"]

1. e4 {[%clk 0:03:01]} 1... e5 {[%clk 0:03:00]} 2. Nf3 {[%clk 0:03:00.4]} 2...
Nc6 {[%clk 0:03:00.7]} 3. Bc4 {[%clk 0:03:00.9]} 3... Nf6 {[%clk 0:02:58.8]} 4.
d3 {[%clk 0:03:01.1]} 4... Bc5 {[%clk 0:02:58.4]} 5. c3 {[%clk 0:03:00.3]} 5...
d6 {[%clk 0:02:56.4]} 6. Bb3 {[%clk 0:03:01.5]} 6... O-O {[%clk 0:02:54.8]} 7.
Nbd2 {[%clk 0:02:59.8]} 7... a6 {[%clk 0:02:55.1]} 8. h3 {[%clk 0:02:58.4]} 8...
Be6 {[%clk 0:02:54.8]} 9. Bc2 {[%clk 0:02:57.3]} 9... d5 {[%clk 0:02:51.6]} 10.
Qe2 {[%clk 0:02:54.7]} 10... Re8 {[%clk 0:02:43.8]} 11. Nf1 {[%clk 0:02:54.4]}
11... Qd7 {[%clk 0:02:36.8]} 12. Ng3 {[%clk 0:02:54.1]} 12... Rad8 {[%clk
0:02:33.3]} 13. Ng5 {[%clk 0:02:53.8]} 13... Ba7 {[%clk 0:01:46.5]} 14. Nxe6
{[%clk 0:02:51.9]} 14... Qxe6 {[%clk 0:01:46.2]} 15. O-O {[%clk 0:02:52]} 15...
Ne7 {[%clk 0:01:38.6]} 16. Kh1 {[%clk 0:02:48.6]} 16... Ng6 {[%clk 0:01:35.4]}
17. Nf5 {[%clk 0:02:31.4]} 17... Nf4 {[%clk 0:01:17.6]} 18. Qf3 {[%clk
0:02:28.7]} 18... Rd7 {[%clk 0:00:50.2]} 19. g3 {[%clk 0:02:14.9]} 19... Ng6
{[%clk 0:00:49.3]} 20. Bg5 {[%clk 0:02:12.1]} 20... h6 {[%clk 0:00:24.2]} 21.
Nxh6+ {[%clk 0:02:08.5]} 21... gxh6 {[%clk 0:00:24.5]} 22. Bxf6 {[%clk
0:02:09.2]} 22... Qxh3+ {[%clk 0:00:25.2]} 23. Kg1 {[%clk 0:02:05.2]} 23... dxe4
{[%clk 0:00:22.6]} 24. dxe4 {[%clk 0:02:05.5]} 24... Rd2 {[%clk 0:00:21.5]} 25.
Bb3 {[%clk 0:02:01.5]} 25... Nf4 {[%clk 0:00:21.5]} 26. Rae1 {[%clk 0:01:36.2]}
26... Nd3 {[%clk 0:00:12]} 27. Bxf7+ {[%clk 0:00:50]} 27... Kxf7 {[%clk
0:00:12.1]} 28. Bg5+ {[%clk 0:00:50]} 28... Nf4 {[%clk 0:00:13.1]} 29. Bxf4
{[%clk 0:00:44.4]} 29... exf4 {[%clk 0:00:08.9]} 30. Qxf4+ {[%clk 0:00:43.5]}
30... Kg8 {[%clk 0:00:10.1]} 31. Qxd2 {[%clk 0:00:27]} 31... Qxg3+ {[%clk
0:00:10.5]} 32. Kh1 {[%clk 0:00:28.3]} 32... Qh3+ {[%clk 0:00:11]} 33. Kg1
{[%clk 0:00:29.7]} 33... Qg3+ {[%clk 0:00:12.4]} 34. Kh1 {[%clk 0:00:31.2]}
34... Qh3+ {[%clk 0:00:13.5]} 1/2-1/2

[Event "*** Titled Tuesday 3|2 Blitz"]
[Site "Chess.com"]
[Date "2015.12.01"]
[Round "1"]
[White "ItalianMachine"]
[Black "Yaacovn"]
[Result "0-1"]
[WhiteElo "2223"]
[BlackElo "2627"]
[TimeControl "180+2"]
[EndTime "17:07:53 PST"]
[Termination "Yaacovn won by resignation"]

1. e4 {[%clk 0:03:01.9]} 1... c6 {[%clk 0:02:58.5]} 2. d4 {[%clk 0:02:58.4]}
2... d5 {[%clk 0:02:57.3]} 3. exd5 {[%clk 0:02:57.8]} 3... cxd5 {[%clk
0:02:58.2]} 4. Nf3 {[%clk 0:02:57.1]} 4... Nf6 {[%clk 0:02:58.7]} 5. Bd3 {[%clk
0:02:57.8]} 5... Nc6 {[%clk 0:02:59.2]} 6. c3 {[%clk 0:02:55.7]} 6... Bg4 {[%clk
0:02:59.5]} 7. Nbd2 {[%clk 0:02:50.2]} 7... e6 {[%clk 0:02:59.8]} 8. h3 {[%clk
0:02:48.4]} 8... Bh5 {[%clk 0:02:59.4]} 9. Qb3 {[%clk 0:02:46.9]} 9... Qc7
{[%clk 0:02:59.1]} 10. g4 {[%clk 0:02:32.9]} 10... Bg6 {[%clk 0:02:56.9]} 11.
Bb5 {[%clk 0:02:25.5]} 11... Bd6 {[%clk 0:02:51.9]} 12. Nf1 {[%clk 0:02:25.8]}
12... O-O {[%clk 0:02:49.9]} 13. Bxc6 {[%clk 0:02:20.8]} 13... bxc6 {[%clk
0:02:35.7]} 14. Ne3 {[%clk 0:02:20.3]} 14... Be4 {[%clk 0:02:34.7]} 15. Qd1
{[%clk 0:02:20.8]} 15... c5 {[%clk 0:02:35.3]} 16. O-O {[%clk 0:02:20.8]} 16...
cxd4 {[%clk 0:02:33.9]} 17. cxd4 {[%clk 0:02:21.5]} 17... Rfc8 {[%clk
0:02:27.7]} 18. Bd2 {[%clk 0:02:21.3]} 18... h6 {[%clk 0:02:26.4]} 19. Bc3
{[%clk 0:02:12.6]} 19... Nh7 {[%clk 0:02:26.4]} 20. Ne5 {[%clk 0:02:11.7]} 20...
Bxe5 {[%clk 0:02:24.8]} 21. dxe5 {[%clk 0:02:12.8]} 21... Ng5 {[%clk 0:02:18.6]}
22. f4 {[%clk 0:02:13.8]} 22... Qb6 {[%clk 0:01:44.2]} 23. Bd4 {[%clk
0:02:14.1]} 23... Nf3+ {[%clk 0:01:44.1]} 24. Rxf3 {[%clk 0:01:35.6]} 24... Bxf3
{[%clk 0:01:46]} 25. Qd2 {[%clk 0:01:29.5]} 25... Qa6 {[%clk 0:01:41.4]} 26. Kf2
{[%clk 0:01:10]} 26... Be4 {[%clk 0:01:32.4]} 27. a3 {[%clk 0:01:11.1]} 27...
Rc7 {[%clk 0:01:27.5]} 28. Rg1 {[%clk 0:01:08.9]} 28... Rac8 {[%clk 0:01:27.7]}
29. Bc3 {[%clk 0:01:10.5]} 29... Qa4 {[%clk 0:01:12.3]} 30. Kg3 {[%clk
0:01:02.7]} 30... Bh7 {[%clk 0:01:05.6]} 31. h4 {[%clk 0:00:52.7]} 31... Be4
{[%clk 0:01:02.6]} 32. f5 {[%clk 0:00:51.9]} 32... Rxc3 {[%clk 0:01:02.3]} 33.
bxc3 {[%clk 0:00:50.4]} 33... Qxa3 {[%clk 0:01:03.3]} 34. Rc1 {[%clk 0:00:48.8]}
34... d4 {[%clk 0:00:37.2]} 35. Nd1 {[%clk 0:00:46.5]} 35... exf5 {[%clk
0:00:33.7]} 36. Nf2 {[%clk 0:00:36.3]} 36... Rxc3+ {[%clk 0:00:29]} 37. Rxc3
{[%clk 0:00:36.6]} 37... Qxc3+ {[%clk 0:00:30]} 38. Qxc3 {[%clk 0:00:37.8]}
38... dxc3 {[%clk 0:00:31.4]} 0-1

[Event "*** Titled Tuesday 3|2 Blitz"]
[Site "Chess.com"]
[Date "2015.12.01"]
[Round "1"]
[White "Dlugy"]
[Black "IM_Chessbrain"]
[Result "1-0"]
[WhiteElo "2505"]
[BlackElo "2190"]
[TimeControl "180+2"]
[EndTime "17:09:02 PST"]
[Termination "Dlugy won by checkmate"]

1. d4 {[%clk 0:02:59.8]} 1... Nf6 {[%clk 0:02:58.8]} 2. Bf4 {[%clk 0:03:00.6]}
2... g6 {[%clk 0:02:55.4]} 3. Nc3 {[%clk 0:03:01.5]} 3... d5 {[%clk 0:02:50.9]}
4. Qd2 {[%clk 0:03:01.8]} 4... Bg7 {[%clk 0:02:49.1]} 5. f3 {[%clk 0:03:03.1]}
5... O-O {[%clk 0:02:36.9]} 6. Bh6 {[%clk 0:03:00.9]} 6... c5 {[%clk 0:02:20.1]}
7. Bxg7 {[%clk 0:03:00.5]} 7... Kxg7 {[%clk 0:02:22]} 8. dxc5 {[%clk 0:02:57.7]}
8... Na6 {[%clk 0:02:13.9]} 9. O-O-O {[%clk 0:02:57.2]} 9... e6 {[%clk
0:02:06.8]} 10. e4 {[%clk 0:02:55]} 10... Nxc5 {[%clk 0:02:06.9]} 11. exd5
{[%clk 0:02:55.7]} 11... exd5 {[%clk 0:01:54.9]} 12. Nxd5 {[%clk 0:02:56.5]}
12... Be6 {[%clk 0:01:52.4]} 13. Nxf6 {[%clk 0:02:43.1]} 13... Qxf6 {[%clk
0:01:53]} 14. Qd4 {[%clk 0:02:44.1]} 14... Qxd4 {[%clk 0:01:47.9]} 15. Rxd4
{[%clk 0:02:44.7]} 15... Bxa2 {[%clk 0:01:49.6]} 16. Ne2 {[%clk 0:02:34.5]}
16... Rac8 {[%clk 0:01:46.7]} 17. Nc3 {[%clk 0:02:34.3]} 17... Be6 {[%clk
0:01:44.1]} 18. Be2 {[%clk 0:02:34.2]} 18... a6 {[%clk 0:01:41.5]} 19. Rhd1
{[%clk 0:02:32.4]} 19... Rc7 {[%clk 0:01:41.9]} 20. Kb1 {[%clk 0:02:32.7]} 20...
Rfc8 {[%clk 0:01:40.8]} 21. Nd5 {[%clk 0:02:26.2]} 21... Bxd5 {[%clk 0:01:38.7]}
22. Rxd5 {[%clk 0:02:27.3]} 22... Na4 {[%clk 0:01:35.8]} 23. R1d2 {[%clk
0:02:25.8]} 23... Rc6 {[%clk 0:01:34.2]} 24. R5d4 {[%clk 0:02:08.5]} 24... Nb6
{[%clk 0:01:27.5]} 25. b3 {[%clk 0:02:05.4]} 25... R8c7 {[%clk 0:01:23.1]} 26.
f4 {[%clk 0:02:06.6]} 26... Re6 {[%clk 0:01:19.5]} 27. Bf3 {[%clk 0:02:06.9]}
27... Nc8 {[%clk 0:01:09.4]} 28. Rd7 {[%clk 0:02:03.8]} 28... Re7 {[%clk
0:01:10.3]} 29. Rxe7 {[%clk 0:02:00.4]} 29... Nxe7 {[%clk 0:01:09.8]} 30. g4
{[%clk 0:01:59.5]} 30... h6 {[%clk 0:01:08.7]} 31. Kb2 {[%clk 0:01:59.8]} 31...
g5 {[%clk 0:01:09.3]} 32. fxg5 {[%clk 0:01:57.5]} 32... hxg5 {[%clk 0:01:10.4]}
33. Be4 {[%clk 0:01:58.8]} 33... Kf6 {[%clk 0:01:09.6]} 34. Re2 {[%clk 0:01:53]}
34... Nc8 {[%clk 0:01:01.5]} 35. c4 {[%clk 0:01:49.3]} 35... a5 {[%clk
0:00:55.3]} 36. Bc2 {[%clk 0:01:35]} 36... a4 {[%clk 0:00:48.1]} 37. Rf2+ {[%clk
0:01:36]} 37... Kg7 {[%clk 0:00:47.5]} 38. bxa4 {[%clk 0:01:30.9]} 38... Rxc4
{[%clk 0:00:35]} 39. Bb3 {[%clk 0:01:31.8]} 39... Rc7 {[%clk 0:00:31.2]} 40. Rf5
{[%clk 0:01:29.9]} 40... Kg6 {[%clk 0:00:28.8]} 41. Bc2 {[%clk 0:01:29.2]} 41...
Kh6 {[%clk 0:00:26]} 42. a5 {[%clk 0:01:30.6]} 42... Re7 {[%clk 0:00:24]} 43.
Rb5 {[%clk 0:01:24.2]} 43... f6 {[%clk 0:00:21.8]} 44. Kc3 {[%clk 0:01:21.1]}
44... Kg7 {[%clk 0:00:21.3]} 45. Kd4 {[%clk 0:01:16.9]} 45... Rd7+ {[%clk
0:00:22.1]} 46. Rd5 {[%clk 0:01:15.9]} 46... Rc7 {[%clk 0:00:23.5]} 47. Be4
{[%clk 0:01:16.9]} 47... b6 {[%clk 0:00:19.7]} 48. a6 {[%clk 0:01:17.1]} 48...
Ra7 {[%clk 0:00:20.7]} 49. Rd8 {[%clk 0:01:15.5]} 49... Ne7 {[%clk 0:00:21.8]}
50. Ra8 {[%clk 0:01:09.8]} 50... Rxa8 {[%clk 0:00:20]} 51. Bxa8 {[%clk
0:01:10.1]} 51... Nc8 {[%clk 0:00:18.1]} 52. Bb7 {[%clk 0:01:07]} 52... Na7
{[%clk 0:00:19.1]} 53. Kd5 {[%clk 0:01:08.4]} 53... Kf8 {[%clk 0:00:18]} 54. Kd6
{[%clk 0:01:09.7]} 54... b5 {[%clk 0:00:19.6]} 55. Kc5 {[%clk 0:01:10.5]} 55...
b4 {[%clk 0:00:18.5]} 56. Kb6 {[%clk 0:01:10.5]} 56... Ke7 {[%clk 0:00:20.4]}
57. Kxa7 {[%clk 0:01:11.4]} 57... b3 {[%clk 0:00:21.5]} 58. Kb6 {[%clk
0:01:12.6]} 58... b2 {[%clk 0:00:23]} 59. Be4 {[%clk 0:01:14.1]} 59... f5 {[%clk
0:00:24.1]} 60. Bxf5 {[%clk 0:01:15.5]} 60... Kf6 {[%clk 0:00:24.8]} 61. a7
{[%clk 0:01:16.3]} 61... Kg7 {[%clk 0:00:26.1]} 62. a8=Q {[%clk 0:01:16.9]}
62... Kh6 {[%clk 0:00:27.8]} 63. Qf8# {[%clk 0:01:17.1]} 1-0

[Event "*** Titled Tuesday 3|2 Blitz"]
[Site "Chess.com"]
[Date "2015.12.01"]
[Round "1"]
[White "Penguininja"]
[Black "jcibarra"]
[Result "0-1"]
[WhiteElo "2193"]
[BlackElo "2507"]
[TimeControl "180+2"]
[EndTime "17:09:08 PST"]
[Termination "jcibarra won by resignation"]

1. d4 {[%clk 0:02:59.5]} 1... Nf6 {[%clk 0:02:59.9]} 2. c4 {[%clk 0:02:58.2]}
2... d6 {[%clk 0:03:01]} 3. Nf3 {[%clk 0:02:55.5]} 3... g6 {[%clk 0:03:01.4]} 4.
Nc3 {[%clk 0:02:56.4]} 4... Bf5 {[%clk 0:03:02.1]} 5. Bg5 {[%clk 0:02:56.4]}
5... Ne4 {[%clk 0:02:59.5]} 6. Bh4 {[%clk 0:02:41.7]} 6... Nxc3 {[%clk
0:02:54.4]} 7. bxc3 {[%clk 0:02:43.6]} 7... Bg7 {[%clk 0:02:54.9]} 8. e3 {[%clk
0:02:40.9]} 8... O-O {[%clk 0:02:54.7]} 9. Be2 {[%clk 0:02:40.6]} 9... c5 {[%clk
0:02:50.7]} 10. O-O {[%clk 0:02:40.9]} 10... Nc6 {[%clk 0:02:49.9]} 11. Bg3
{[%clk 0:02:02.3]} 11... Rc8 {[%clk 0:02:46.1]} 12. Nh4 {[%clk 0:01:59.2]} 12...
Bd7 {[%clk 0:02:42.6]} 13. Bg4 {[%clk 0:01:50.7]} 13... f5 {[%clk 0:02:40.2]}
14. Be2 {[%clk 0:01:48.3]} 14... Na5 {[%clk 0:02:27.3]} 15. Bf3 {[%clk
0:01:31.7]} 15... b6 {[%clk 0:02:20]} 16. Be2 {[%clk 0:01:19.7]} 16... cxd4
{[%clk 0:02:17.5]} 17. cxd4 {[%clk 0:01:16.2]} 17... Nxc4 {[%clk 0:02:15.9]} 18.
Nf3 {[%clk 0:01:10.7]} 18... b5 {[%clk 0:02:15.4]} 19. a4 {[%clk 0:01:07.8]}
19... bxa4 {[%clk 0:02:11.5]} 20. Qc2 {[%clk 0:01:00.4]} 20... Bb5 {[%clk
0:02:00.9]} 21. Rfb1 {[%clk 0:00:56.8]} 21... a6 {[%clk 0:02:00.1]} 22. Rxa4
{[%clk 0:00:52.4]} 22... Bxa4 {[%clk 0:01:44.2]} 23. Bxc4+ {[%clk 0:00:53]}
23... d5 {[%clk 0:01:42.2]} 24. Bxd5+ {[%clk 0:00:38.7]} 24... Qxd5 {[%clk
0:01:41.5]} 25. Qxa4 {[%clk 0:00:40.6]} 25... Qc4 {[%clk 0:01:36.4]} 26. Qa3
{[%clk 0:00:29.2]} 26... Bf6 {[%clk 0:01:31.6]} 27. h3 {[%clk 0:00:24.3]} 27...
Ra8 {[%clk 0:01:10.8]} 28. Rc1 {[%clk 0:00:17.9]} 28... Qd5 {[%clk 0:01:07.4]}
29. Rc5 {[%clk 0:00:18.3]} 29... Qd7 {[%clk 0:01:04.9]} 30. Rc7 {[%clk
0:00:18.6]} 30... Qb5 {[%clk 0:00:59.4]} 31. Qa2+ {[%clk 0:00:19]} 31... Kh8
{[%clk 0:00:58.3]} 32. Be5 {[%clk 0:00:19.3]} 32... Rac8 {[%clk 0:00:46.4]} 33.
Rxe7 {[%clk 0:00:16.7]} 33... Qc4 {[%clk 0:00:38.3]} 34. Qa5 {[%clk 0:00:12.1]}
34... Kg8 {[%clk 0:00:27.1]} 35. Qb6 {[%clk 0:00:09.5]} 35... Qc6 {[%clk
0:00:22.6]} 36. Qa7 {[%clk 0:00:10]} 36... Ra8 {[%clk 0:00:09.3]} 37. Rg7+
{[%clk 0:00:07.1]} 37... Kh8 {[%clk 0:00:10.5]} 38. Rxh7+ {[%clk 0:00:07.5]}
38... Kg8 {[%clk 0:00:12]} 39. Qb7 {[%clk 0:00:05.7]} 39... Qxb7 {[%clk
0:00:12.7]} 40. Rxb7 {[%clk 0:00:07.6]} 40... a5 {[%clk 0:00:14.2]} 41. Rb3
{[%clk 0:00:07.7]} 41... a4 {[%clk 0:00:15.2]} 42. Ra3 {[%clk 0:00:09.2]} 42...
Be7 {[%clk 0:00:16.7]} 43. Ra2 {[%clk 0:00:10]} 43... a3 {[%clk 0:00:18.6]} 44.
d5 {[%clk 0:00:11]} 44... Rfd8 {[%clk 0:00:19.2]} 45. Nd4 {[%clk 0:00:12]} 45...
Rxd5 {[%clk 0:00:20]} 46. Bf4 {[%clk 0:00:12.5]} 46... Bf6 {[%clk 0:00:20.4]}
0-1

[Event "*** Titled Tuesday 3|2 Blitz"]
[Site "Chess.com"]
[Date "2015.12.01"]
[Round "1"]
[White "UltimateCrusher2"]
[Black "simplerXiao"]
[Result "0-1"]
[WhiteElo "2032"]
[BlackElo "2338"]
[TimeControl "180+2"]
[EndTime "17:09:15 PST"]
[Termination "simplerXiao won by resignation"]

1. Nf3 {[%clk 0:02:51.8]} 1... d5 {[%clk 0:02:58.5]} 2. g3 {[%clk 0:02:53.6]}
2... Nc6 {[%clk 0:02:58.2]} 3. d4 {[%clk 0:02:53.3]} 3... Bg4 {[%clk 0:02:58.5]}
4. Bg2 {[%clk 0:02:52.3]} 4... Qd7 {[%clk 0:02:58.6]} 5. Ne5 {[%clk 0:02:20.9]}
5... Nxe5 {[%clk 0:02:56.2]} 6. dxe5 {[%clk 0:02:22.8]} 6... O-O-O {[%clk
0:02:55.9]} 7. O-O {[%clk 0:02:20.5]} 7... Bh3 {[%clk 0:02:53.5]} 8. c4 {[%clk
0:02:03.1]} 8... Bxg2 {[%clk 0:02:44.5]} 9. Kxg2 {[%clk 0:02:05]} 9... Qc6
{[%clk 0:02:44.4]} 10. Kg1 {[%clk 0:01:50.1]} 10... dxc4 {[%clk 0:02:43.3]} 11.
Qc2 {[%clk 0:01:51.1]} 11... h5 {[%clk 0:02:34.7]} 12. h4 {[%clk 0:01:51]} 12...
Nh6 {[%clk 0:02:27.8]} 13. Na3 {[%clk 0:01:40.1]} 13... Ng4 {[%clk 0:02:23.5]}
14. Qxc4 {[%clk 0:01:36]} 14... Nxe5 {[%clk 0:02:17.4]} 15. Qf4 {[%clk
0:01:23.9]} 15... Qe6 {[%clk 0:02:07]} 16. Be3 {[%clk 0:01:18.6]} 16... a6
{[%clk 0:01:53.1]} 17. Rac1 {[%clk 0:01:15.2]} 17... g5 {[%clk 0:01:52.1]} 18.
hxg5 {[%clk 0:01:05.7]} 18... f6 {[%clk 0:01:39.4]} 19. gxf6 {[%clk 0:01:03.3]}
19... exf6 {[%clk 0:01:36.8]} 20. Qh4 {[%clk 0:00:45.5]} 20... Be7 {[%clk
0:01:18.8]} 21. Nc4 {[%clk 0:00:39.4]} 21... Ng4 {[%clk 0:01:11.8]} 22. Bf4
{[%clk 0:00:28.2]} 22... Kb8 {[%clk 0:01:04.4]} 23. Ne3 {[%clk 0:00:26.2]} 23...
Ne5 {[%clk 0:00:57.8]} 24. Bxe5 {[%clk 0:00:24.9]} 24... fxe5 {[%clk 0:00:55.7]}
25. Qc4 {[%clk 0:00:25.9]} 25... Qc8 {[%clk 0:00:54.3]} 26. Nd5 {[%clk
0:00:22.7]} 26... Bd6 {[%clk 0:00:54.1]} 27. Rc2 {[%clk 0:00:21.1]} 27... h4
{[%clk 0:00:54.7]} 28. Rfc1 {[%clk 0:00:20.9]} 28... hxg3 {[%clk 0:00:54.3]} 29.
fxg3 {[%clk 0:00:22]} 29... Rdg8 {[%clk 0:00:50.6]} 30. Nxc7 {[%clk 0:00:19.7]}
30... Rxg3+ {[%clk 0:00:50.8]} 31. Kf2 {[%clk 0:00:20.7]} 31... Rh2+ {[%clk
0:00:41]} 32. Ke1 {[%clk 0:00:19.1]} 32... Rg1+ {[%clk 0:00:38.3]} 33. Kd2
{[%clk 0:00:20.8]} 33... Rxc1 {[%clk 0:00:31.4]} 34. Kxc1 {[%clk 0:00:22.7]}
34... Bxc7 {[%clk 0:00:32.1]} 35. Qe4 {[%clk 0:00:19.2]} 35... Rh6 {[%clk
0:00:27.8]} 36. Rc3 {[%clk 0:00:18.9]} 36... Rc6 {[%clk 0:00:26.6]} 37. Rxc6
{[%clk 0:00:19.3]} 37... bxc6 {[%clk 0:00:27.9]} 38. Qxc6 {[%clk 0:00:21]} 38...
Bd8 {[%clk 0:00:27.2]} 39. Qxc8+ {[%clk 0:00:20.9]} 39... Kxc8 {[%clk
0:00:28.5]} 40. e4 {[%clk 0:00:22.7]} 40... Kc7 {[%clk 0:00:29]} 41. Kc2 {[%clk
0:00:24.1]} 41... Kc6 {[%clk 0:00:30.4]} 42. b4 {[%clk 0:00:23.6]} 42... Bb6
{[%clk 0:00:25.8]} 43. Kb3 {[%clk 0:00:24]} 43... Bd4 {[%clk 0:00:23.8]} 44. a4
{[%clk 0:00:23.3]} 44... Ba1 {[%clk 0:00:22.5]} 45. Kc4 {[%clk 0:00:24.4]} 45...
Bd4 {[%clk 0:00:23.3]} 46. Kb3 {[%clk 0:00:25.5]} 46... a5 {[%clk 0:00:23.1]}
47. bxa5 {[%clk 0:00:21.6]} 47... Kb7 {[%clk 0:00:23]} 48. Ka3 {[%clk
0:00:15.5]} 48... Ka6 {[%clk 0:00:22.9]} 49. Kb4 {[%clk 0:00:17]} 49... Ba1
{[%clk 0:00:24]} 50. Ka3 {[%clk 0:00:17.1]} 50... Kxa5 {[%clk 0:00:25.2]} 51.
Kb3 {[%clk 0:00:18.7]} 51... Bd4 {[%clk 0:00:25.8]} 52. Ka3 {[%clk 0:00:19.9]}
52... Bc5+ {[%clk 0:00:26.9]} 53. Kb3 {[%clk 0:00:21.4]} 53... Bb4 {[%clk
0:00:27.3]} 54. Kc4 {[%clk 0:00:21.6]} 54... Kxa4 {[%clk 0:00:28.6]} 55. Kd5
{[%clk 0:00:23]} 55... Bc3 {[%clk 0:00:29.8]} 56. Kc4 {[%clk 0:00:24.7]} 56...
Bd4 {[%clk 0:00:30.9]} 0-1

[Event "*** Titled Tuesday 3|2 Blitz"]
[Site "Chess.com"]
[Date "2015.12.01"]
[Round "1"]
[White "pedromartinez91"]
[Black "DanielNaroditsky"]
[Result "0-1"]
[WhiteElo "2182"]
[BlackElo "2507"]
[TimeControl "180+2"]
[EndTime "17:09:35 PST"]
[Termination "DanielNaroditsky won by checkmate"]

1. e4 {[%clk 0:03:00]} 1... e5 {[%clk 0:03:00]} 2. Nf3 {[%clk 0:02:59.8]} 2...
Nc6 {[%clk 0:03:01]} 3. Bb5 {[%clk 0:02:57.9]} 3... a6 {[%clk 0:03:01.6]} 4. Ba4
{[%clk 0:02:56.2]} 4... Nf6 {[%clk 0:03:02.5]} 5. O-O {[%clk 0:02:55]} 5... Be7
{[%clk 0:03:03.2]} 6. d3 {[%clk 0:02:51.6]} 6... b5 {[%clk 0:03:00.6]} 7. Bb3
{[%clk 0:02:51.9]} 7... d6 {[%clk 0:03:02.3]} 8. a3 {[%clk 0:02:48.7]} 8... O-O
{[%clk 0:03:01.9]} 9. h3 {[%clk 0:02:48.5]} 9... Na5 {[%clk 0:02:48.6]} 10. Ba2
{[%clk 0:02:48.6]} 10... c5 {[%clk 0:02:49.9]} 11. Bg5 {[%clk 0:02:49.2]} 11...
Be6 {[%clk 0:02:49.3]} 12. Nc3 {[%clk 0:02:47.5]} 12... c4 {[%clk 0:02:29.9]}
13. d4 {[%clk 0:02:12.4]} 13... Qc7 {[%clk 0:02:29.5]} 14. Qd2 {[%clk
0:01:59.5]} 14... Rad8 {[%clk 0:02:10.1]} 15. d5 {[%clk 0:01:59.3]} 15... Bd7
{[%clk 0:02:02.7]} 16. b4 {[%clk 0:01:46.8]} 16... cxb3 {[%clk 0:01:50.6]} 17.
cxb3 {[%clk 0:01:46.8]} 17... Rc8 {[%clk 0:01:49.7]} 18. Rac1 {[%clk 0:01:46.7]}
18... Qb8 {[%clk 0:01:38.3]} 19. Bxf6 {[%clk 0:01:37.1]} 19... Bxf6 {[%clk
0:01:39]} 20. Ne2 {[%clk 0:01:37.8]} 20... Qb6 {[%clk 0:01:37.1]} 21. Ng3 {[%clk
0:01:30.6]} 21... g6 {[%clk 0:01:37.8]} 22. Qd3 {[%clk 0:01:27.1]} 22... Nb7
{[%clk 0:01:36.2]} 23. b4 {[%clk 0:01:27.3]} 23... a5 {[%clk 0:01:37.7]} 24. Qd2
{[%clk 0:01:17.4]} 24... Bg7 {[%clk 0:01:32.4]} 25. Rxc8 {[%clk 0:01:05.9]}
25... Rxc8 {[%clk 0:01:33.2]} 26. Rc1 {[%clk 0:01:06]} 26... Rxc1+ {[%clk
0:01:34.1]} 27. Qxc1 {[%clk 0:01:06.4]} 27... axb4 {[%clk 0:01:35.8]} 28. axb4
{[%clk 0:01:06.9]} 28... h6 {[%clk 0:01:34.4]} 29. Qc3 {[%clk 0:01:02.6]} 29...
Bf6 {[%clk 0:01:32.5]} 30. Nh2 {[%clk 0:01:00.9]} 30... h5 {[%clk 0:01:32.5]}
31. Ne2 {[%clk 0:00:59.5]} 31... Bh4 {[%clk 0:01:24.8]} 32. g3 {[%clk
0:00:52.1]} 32... Bd8 {[%clk 0:01:25.8]} 33. Kg2 {[%clk 0:00:52.4]} 33... Qa7
{[%clk 0:01:25.1]} 34. Bb1 {[%clk 0:00:48]} 34... Bb6 {[%clk 0:01:25.6]} 35. f4
{[%clk 0:00:38.2]} 35... Qa4 {[%clk 0:00:57.5]} 36. Bc2 {[%clk 0:00:35]} 36...
Qa2 {[%clk 0:00:58.4]} 37. Nf3 {[%clk 0:00:32.7]} 37... f6 {[%clk 0:00:53.5]}
38. Nh4 {[%clk 0:00:29]} 38... Kg7 {[%clk 0:00:48.6]} 39. f5 {[%clk 0:00:29.8]}
39... g5 {[%clk 0:00:49.6]} 40. Ng6 {[%clk 0:00:30.1]} 40... Nd8 {[%clk
0:00:40.2]} 41. Ne7 {[%clk 0:00:28.9]} 41... Qa7 {[%clk 0:00:34.1]} 42. Nc6
{[%clk 0:00:26.9]} 42... Bxc6 {[%clk 0:00:30.6]} 43. dxc6 {[%clk 0:00:26.4]}
43... Qc7 {[%clk 0:00:32.3]} 44. Bb3 {[%clk 0:00:22]} 44... Qxc6 {[%clk
0:00:32]} 45. Qd3 {[%clk 0:00:23.3]} 45... Kf8 {[%clk 0:00:23.6]} 46. Bd5 {[%clk
0:00:24]} 46... Qd7 {[%clk 0:00:23.8]} 47. Nc3 {[%clk 0:00:24]} 47... Qa7 {[%clk
0:00:21.8]} 48. Nxb5 {[%clk 0:00:19.2]} 48... Qa1 {[%clk 0:00:21.4]} 49. Qf1
{[%clk 0:00:15.8]} 49... Qb2+ {[%clk 0:00:21.7]} 50. Kh1 {[%clk 0:00:16.7]}
50... Qxb4 {[%clk 0:00:23.4]} 51. Ba2 {[%clk 0:00:11]} 51... Nc6 {[%clk
0:00:23.1]} 52. Qc4 {[%clk 0:00:08.3]} 52... Qe1+ {[%clk 0:00:23.3]} 53. Kg2
{[%clk 0:00:09.3]} 53... Qf2+ {[%clk 0:00:23.3]} 54. Kh1 {[%clk 0:00:11.2]}
54... Qg1# {[%clk 0:00:24.3]} 0-1